[Event "Titled Tuesday Blitz July 11 Late 2023"]
[White "KorolDimitriy75"]
[Black "Morefield, Jason"]
[BlackFideId "30920825"]
[WhiteElo "2449"]
[BlackElo "2802"]
[Result "1-0"]
[Round "1"]
[TimeControl "180+2"]
[Date "2023.07.11"]
[WhiteClock "0:00:10"]
[BlackClock "0:00:01"]
[Board "55"]

1. d4 {[%clk 0:03:00]}  Nf6 {[%clk 0:02:56]} 2. c4 {[%clk 0:03:00]}  e6 {[%clk 0:02:54]} 3. Nc3 {[%clk 0:03:00]}  Bb4 {[%clk 0:02:52]} 4. Qc2 {[%clk 0:02:59]}  O-O {[%clk 0:02:51]} 5. e4 {[%clk 0:02:59]}  d5 {[%clk 0:02:51]} 6. cxd5 {[%clk 0:03:00]}  exd5 {[%clk 0:02:51]} 7. e5 {[%clk 0:03:01]}  Ne4 {[%clk 0:02:51]} 8. Bd3 {[%clk 0:03:01]}  c5 {[%clk 0:02:48]} 9. Ne2 {[%clk 0:03:02]}  cxd4 {[%clk 0:02:39]} 10. Nxd4 {[%clk 0:03:02]}  Nc6 {[%clk 0:02:32]} 11. Nxc6 {[%clk 0:03:01]}  bxc6 {[%clk 0:02:32]} 12. O-O {[%clk 0:03:00]}  f5 {[%clk 0:02:27]} 13. Nxe4 {[%clk 0:03:00]}  dxe4 {[%clk 0:02:16]} 14. Bxe4 {[%clk 0:02:53]}  fxe4 {[%clk 0:02:13]} 15. Qb3+ {[%clk 0:02:50]}  Kh8 {[%clk 0:02:08]} 16. Qxb4 {[%clk 0:02:50]}  Ba6 {[%clk 0:01:47]} 17. Re1 {[%clk 0:02:46]}  Bd3 {[%clk 0:01:46]} 18. Be3 {[%clk 0:02:29]}  Qd5 {[%clk 0:01:29]} 19. Qd4 {[%clk 0:01:57]}  Qe6 {[%clk 0:01:21]} 20. b3 {[%clk 0:01:15]}  a5 {[%clk 0:01:15]} 21. Rac1 {[%clk 0:00:58]}  Rf5 {[%clk 0:00:42]} 22. Qd6 {[%clk 0:00:43]}  Rxe5 {[%clk 0:00:34]} 23. Rxc6 {[%clk 0:00:39]}  Qf5 {[%clk 0:00:21]} 24. Rec1 {[%clk 0:00:19]}  Rg8 {[%clk 0:00:18]} 25. R6c5 {[%clk 0:00:18]}  Rxc5 {[%clk 0:00:18]} 26. Qxc5 {[%clk 0:00:17]}  Qxc5 {[%clk 0:00:11]} 27. Rxc5 {[%clk 0:00:18]}  Ra8 {[%clk 0:00:11]} 28. Bd2 {[%clk 0:00:14]}  a4 {[%clk 0:00:10]} 29. bxa4 {[%clk 0:00:14]}  Kg8 {[%clk 0:00:10]} 30. a5 {[%clk 0:00:14]}  Ra7 {[%clk 0:00:08]} 31. h3 {[%clk 0:00:14]}  Kf7 {[%clk 0:00:08]} 32. Be3 {[%clk 0:00:14]}  Rb7 {[%clk 0:00:08]} 33. a3 {[%clk 0:00:13]}  Rb3 {[%clk 0:00:07]} 34. Rc7+ {[%clk 0:00:11]}  Kg6 {[%clk 0:00:05]} 35. Bd4 {[%clk 0:00:11]}  Rxa3 {[%clk 0:00:05]} 36. Rxg7+ {[%clk 0:00:10]}  Kh6 {[%clk 0:00:06]} 37. Ra7 {[%clk 0:00:10]}  Ra4 {[%clk 0:00:06]} 38. Be3+ {[%clk 0:00:10]}  Kg6 {[%clk 0:00:06]} 39. Kh2 {[%clk 0:00:10]}  Ra2 {[%clk 0:00:03]} 40. Kg3 {[%clk 0:00:10]}  Ra4 {[%clk 0:00:03]} 41. Kf4 {[%clk 0:00:10]}  Rc4 {[%clk 0:00:04]} 42. g4 {[%clk 0:00:10]}  Rc6 {[%clk 0:00:04]} 43. h4 {[%clk 0:00:10]}  Rf6+ {[%clk 0:00:03]} 44. Ke5 {[%clk 0:00:10]}  Rc6 {[%clk 0:00:01]} 45. h5# {[%clk 0:00:10]} 1-0


[Site "https://www.chess.com"]

[Event "Titled Tuesday Blitz July 11 Late 2023"]
[White "Zemlyanskii, Ivan"]
[Black "Srdanovic, Jovana"]
[WhiteFideId "24249971"]
[BlackFideId "954810"]
[WhiteElo "2795"]
[BlackElo "2447"]
[Result "1-0"]
[Round "1"]
[TimeControl "180+2"]
[Date "2023.07.11"]
[WhiteClock "0:01:50"]
[BlackClock "0:00:17"]
[Board "56"]

1. d4 {[%clk 0:03:00]}  d5 {[%clk 0:02:57]} 2. Bf4 {[%clk 0:03:00]}  Nf6 {[%clk 0:02:56]} 3. e3 {[%clk 0:03:00]}  Bf5 {[%clk 0:02:52]} 4. Nf3 {[%clk 0:02:55]}  e6 {[%clk 0:02:50]} 5. c4 {[%clk 0:02:55]}  c6 {[%clk 0:02:48]} 6. Qb3 {[%clk 0:02:49]}  Qb6 {[%clk 0:02:31]} 7. Nc3 {[%clk 0:02:30]}  Nbd7 {[%clk 0:02:28]} 8. c5 {[%clk 0:02:29]}  Qxb3 {[%clk 0:02:24]} 9. axb3 {[%clk 0:02:30]}  h6 {[%clk 0:02:23]} 10. h3 {[%clk 0:02:26]}  g5 {[%clk 0:02:20]} 11. Bh2 {[%clk 0:02:24]}  Ne4 {[%clk 0:02:16]} 12. b4 {[%clk 0:02:24]}  Nxc3 {[%clk 0:01:44]} 13. bxc3 {[%clk 0:02:25]}  Nf6 {[%clk 0:01:43]} 14. b5 {[%clk 0:02:23]}  Ne4 {[%clk 0:01:34]} 15. bxc6 {[%clk 0:02:23]}  bxc6 {[%clk 0:01:33]} 16. Ba6 {[%clk 0:02:24]}  Kd7 {[%clk 0:01:10]} 17. Bb7 {[%clk 0:02:22]}  Bg7 {[%clk 0:01:11]} 18. Ra6 {[%clk 0:02:12]}  Nxc3 {[%clk 0:01:00]} 19. Bxc6+ {[%clk 0:02:12]}  Ke7 {[%clk 0:00:56]} 20. Bd6+ {[%clk 0:02:11]}  Kf6 {[%clk 0:00:57]} 21. Bxa8 {[%clk 0:01:54]}  Rxa8 {[%clk 0:00:56]} 22. Ne5 {[%clk 0:01:55]}  Nb5 {[%clk 0:00:45]} 23. g4 {[%clk 0:01:51]}  Nxd6 {[%clk 0:00:20]} 24. cxd6 {[%clk 0:01:50]}  Rb8 {[%clk 0:00:19]} 25. Nd7+ {[%clk 0:01:49]}  Kg6 {[%clk 0:00:17]} 26. Nxb8 {[%clk 0:01:50]} 1-0


[Site "https://www.chess.com"]

[Event "Titled Tuesday Blitz July 11 Late 2023"]
[White "Matt, Fabian"]
[Black "Bartel, Mateusz"]
[WhiteFideId "1623303"]
[BlackFideId "1112635"]
[WhiteElo "2446"]
[BlackElo "2793"]
[Result "0-1"]
[Round "1"]
[TimeControl "180+2"]
[Date "2023.07.11"]
[WhiteClock "0:00:28"]
[BlackClock "0:00:46"]
[Board "57"]

1. d4 {[%clk 0:03:00]}  f5 {[%clk 0:02:56]} 2. Nf3 {[%clk 0:02:58]}  Nf6 {[%clk 0:02:55]} 3. g3 {[%clk 0:02:57]}  g6 {[%clk 0:02:55]} 4. Bg2 {[%clk 0:02:57]}  Bg7 {[%clk 0:02:56]} 5. O-O {[%clk 0:02:57]}  O-O {[%clk 0:02:56]} 6. c4 {[%clk 0:02:54]}  d6 {[%clk 0:02:55]} 7. Nc3 {[%clk 0:02:52]}  c6 {[%clk 0:02:52]} 8. Qc2 {[%clk 0:02:47]}  Na6 {[%clk 0:02:45]} 9. e4 {[%clk 0:02:20]}  fxe4 {[%clk 0:02:13]} 10. Nxe4 {[%clk 0:02:19]}  Bf5 {[%clk 0:02:12]} 11. Nxf6+ {[%clk 0:02:10]}  exf6 {[%clk 0:01:59]} 12. Qb3 {[%clk 0:02:04]}  Qb6 {[%clk 0:01:58]} 13. Bf4 {[%clk 0:01:54]}  Qxb3 {[%clk 0:01:45]} 14. axb3 {[%clk 0:01:55]}  Rad8 {[%clk 0:01:43]} 15. Rfe1 {[%clk 0:01:35]}  g5 {[%clk 0:01:39]} 16. Bd2 {[%clk 0:01:32]}  Rde8 {[%clk 0:01:36]} 17. b4 {[%clk 0:01:15]}  Bd3 {[%clk 0:01:33]} 18. Rxe8 {[%clk 0:01:08]}  Rxe8 {[%clk 0:01:29]} 19. b3 {[%clk 0:01:08]}  h6 {[%clk 0:01:21]} 20. Bf1 {[%clk 0:01:04]}  Be4 {[%clk 0:01:17]} 21. Ne1 {[%clk 0:00:59]}  f5 {[%clk 0:01:16]} 22. Be3 {[%clk 0:00:56]}  f4 {[%clk 0:01:15]} 23. gxf4 {[%clk 0:00:53]}  gxf4 {[%clk 0:01:16]} 24. Bxf4 {[%clk 0:00:54]}  Bxd4 {[%clk 0:01:15]} 25. Rd1 {[%clk 0:00:53]}  Bc3 {[%clk 0:01:14]} 26. Bxd6 {[%clk 0:00:45]}  Nxb4 {[%clk 0:01:09]} 27. Bg2 {[%clk 0:00:37]}  Bg6 {[%clk 0:00:48]} 28. Bc5 {[%clk 0:00:28]}  Rxe1+ {[%clk 0:00:46]} 0-1


[Site "https://www.chess.com"]

[Event "Titled Tuesday Blitz July 11 Late 2023"]
[White "Sztokbant, Bernardo Vainzoff"]
[Black "Svane, Frederik"]
[WhiteFideId "2115956"]
[BlackFideId "12923044"]
[WhiteElo "2442"]
[BlackElo "2791"]
[Result "0-1"]
[Round "1"]
[TimeControl "180+2"]
[Date "2023.07.11"]
[WhiteClock "0:00:00"]
[BlackClock "0:00:35"]
[Board "59"]

1. e4 {[%clk 0:02:59]}  c5 {[%clk 0:02:59]} 2. Nc3 {[%clk 0:02:58]}  e6 {[%clk 0:03:00]} 3. f4 {[%clk 0:02:58]}  Nc6 {[%clk 0:03:00]} 4. Nf3 {[%clk 0:02:58]}  g6 {[%clk 0:02:55]} 5. g3 {[%clk 0:02:58]}  Bg7 {[%clk 0:02:55]} 6. Bg2 {[%clk 0:02:58]}  Nge7 {[%clk 0:02:56]} 7. O-O {[%clk 0:02:58]}  O-O {[%clk 0:02:56]} 8. d3 {[%clk 0:02:58]}  b6 {[%clk 0:02:57]} 9. Kh1 {[%clk 0:02:51]}  Bb7 {[%clk 0:02:57]} 10. e5 {[%clk 0:02:43]}  d6 {[%clk 0:02:56]} 11. exd6 {[%clk 0:02:43]}  Qxd6 {[%clk 0:02:57]} 12. Qe2 {[%clk 0:02:34]}  Nf5 {[%clk 0:02:57]} 13. Ne4 {[%clk 0:02:30]}  Qd7 {[%clk 0:02:57]} 14. c3 {[%clk 0:02:29]}  Rad8 {[%clk 0:02:56]} 15. Rd1 {[%clk 0:02:27]}  Rfe8 {[%clk 0:02:41]} 16. Be3 {[%clk 0:02:23]}  Nxe3 {[%clk 0:02:36]} 17. Qxe3 {[%clk 0:02:24]}  f5 {[%clk 0:02:36]} 18. Nf2 {[%clk 0:02:17]}  e5 {[%clk 0:02:37]} 19. Re1 {[%clk 0:01:41]}  h6 {[%clk 0:02:37]} 20. Rad1 {[%clk 0:01:27]}  Kh7 {[%clk 0:02:35]} 21. Kg1 {[%clk 0:01:23]}  Re7 {[%clk 0:02:22]} 22. a3 {[%clk 0:01:12]}  Rde8 {[%clk 0:02:21]} 23. Qc1 {[%clk 0:01:01]}  exf4 {[%clk 0:02:13]} 24. Qxf4 {[%clk 0:00:45]}  Rxe1+ {[%clk 0:02:03]} 25. Rxe1 {[%clk 0:00:46]}  Rxe1+ {[%clk 0:02:03]} 26. Nxe1 {[%clk 0:00:46]}  g5 {[%clk 0:02:04]} 27. Qe3 {[%clk 0:00:37]}  Kg6 {[%clk 0:01:58]} 28. Bh3 {[%clk 0:00:31]}  Ne5 {[%clk 0:01:51]} 29. Bg2 {[%clk 0:00:26]}  Ba6 {[%clk 0:01:35]} 30. Bh3 {[%clk 0:00:21]}  Bf6 {[%clk 0:01:19]} 31. Bg2 {[%clk 0:00:18]}  Bb5 {[%clk 0:01:13]} 32. Bh3 {[%clk 0:00:17]}  g4 {[%clk 0:01:02]} 33. Bg2 {[%clk 0:00:17]}  h5 {[%clk 0:01:03]} 34. b4 {[%clk 0:00:12]}  Qd6 {[%clk 0:00:53]} 35. bxc5 {[%clk 0:00:09]}  bxc5 {[%clk 0:00:54]} 36. d4 {[%clk 0:00:07]}  cxd4 {[%clk 0:00:51]} 37. cxd4 {[%clk 0:00:06]}  Nc4 {[%clk 0:00:48]} 38. Qb3 {[%clk 0:00:06]}  Bxd4 {[%clk 0:00:37]} 39. Qxb5 {[%clk 0:00:06]}  Bxf2+ {[%clk 0:00:37]} 40. Kxf2 {[%clk 0:00:06]}  Qd2+ {[%clk 0:00:34]} 41. Kg1 {[%clk 0:00:04]}  Qe3+ {[%clk 0:00:35]} 42. Kh1 {[%clk 0:00:00]}  Qxe1+ {[%clk 0:00:35]} 0-1


[Site "https://www.chess.com"]

[Event "Titled Tuesday Blitz July 11 Late 2023"]
[White "Licznerski, Lukasz"]
[Black "Bouget, Alexandre"]
[WhiteFideId "1179250"]
[BlackFideId "681318"]
[WhiteElo "2787"]
[BlackElo "2432"]
[Result "1-0"]
[Round "1"]
[TimeControl "180+2"]
[Date "2023.07.11"]
[WhiteClock "0:00:06"]
[BlackClock "0:00:00"]
[Board "62"]

1. e4 {[%clk 0:02:54]}  e5 {[%clk 0:02:55]} 2. Nf3 {[%clk 0:02:54]}  Nc6 {[%clk 0:02:54]} 3. Bb5 {[%clk 0:02:54]}  a6 {[%clk 0:02:53]} 4. Bxc6 {[%clk 0:02:54]}  dxc6 {[%clk 0:02:52]} 5. O-O {[%clk 0:02:55]}  f6 {[%clk 0:02:52]} 6. d4 {[%clk 0:02:55]}  Bg4 {[%clk 0:02:53]} 7. c3 {[%clk 0:02:55]}  Bd6 {[%clk 0:02:50]} 8. Be3 {[%clk 0:02:43]}  Ne7 {[%clk 0:02:50]} 9. Nbd2 {[%clk 0:02:40]}  Ng6 {[%clk 0:02:45]} 10. Qb3 {[%clk 0:02:33]}  Qe7 {[%clk 0:02:33]} 11. Qxb7 {[%clk 0:02:25]}  O-O {[%clk 0:02:31]} 12. Qxc6 {[%clk 0:02:26]}  exd4 {[%clk 0:02:17]} 13. cxd4 {[%clk 0:02:24]}  Nf4 {[%clk 0:02:15]} 14. Bxf4 {[%clk 0:01:46]}  Bxf4 {[%clk 0:02:14]} 15. h3 {[%clk 0:01:47]}  Bh5 {[%clk 0:02:08]} 16. Qc5 {[%clk 0:01:15]}  Qf7 {[%clk 0:01:54]} 17. Qc4 {[%clk 0:01:14]}  Qxc4 {[%clk 0:01:45]} 18. Nxc4 {[%clk 0:01:13]}  Bxf3 {[%clk 0:01:45]} 19. gxf3 {[%clk 0:01:13]}  Rfd8 {[%clk 0:01:38]} 20. Rfd1 {[%clk 0:01:09]}  Rab8 {[%clk 0:01:35]} 21. Rd3 {[%clk 0:00:58]}  Rb5 {[%clk 0:01:34]} 22. d5 {[%clk 0:00:55]}  Kf7 {[%clk 0:01:23]} 23. Rad1 {[%clk 0:00:49]}  h5 {[%clk 0:01:09]} 24. Ra3 {[%clk 0:00:49]}  c6 {[%clk 0:00:55]} 25. d6 {[%clk 0:00:31]}  Ke6 {[%clk 0:00:45]} 26. Rxa6 {[%clk 0:00:31]}  Rc5 {[%clk 0:00:45]} 27. b3 {[%clk 0:00:27]}  Bxd6 {[%clk 0:00:44]} 28. Kf1 {[%clk 0:00:21]}  Rd7 {[%clk 0:00:40]} 29. Ke2 {[%clk 0:00:19]}  g5 {[%clk 0:00:35]} 30. Rd4 {[%clk 0:00:14]}  Bf4 {[%clk 0:00:20]} 31. Rxd7 {[%clk 0:00:14]}  Kxd7 {[%clk 0:00:21]} 32. Ra5 {[%clk 0:00:11]}  Rxa5 {[%clk 0:00:10]} 33. Nxa5 {[%clk 0:00:12]}  Kc7 {[%clk 0:00:05]} 34. Kd3 {[%clk 0:00:06]}  Kb6 {[%clk 0:00:05]} 35. Nc4+ {[%clk 0:00:07]}  Kb5 {[%clk 0:00:05]} 36. a3 {[%clk 0:00:05]}  Kc5 {[%clk 0:00:03]} 37. Kc3 {[%clk 0:00:04]}  Bh2 {[%clk 0:00:03]} 38. b4+ {[%clk 0:00:04]}  Kb5 {[%clk 0:00:02]} 39. Kb3 {[%clk 0:00:05]}  Bg1 {[%clk 0:00:02]} 40. Nd6+ {[%clk 0:00:05]}  Kb6 {[%clk 0:00:02]} 41. Ne8 {[%clk 0:00:05]}  Bxf2 {[%clk 0:00:02]} 42. Nxf6 {[%clk 0:00:06]}  Be3 {[%clk 0:00:00]} 43. Nxh5 {[%clk 0:00:06]} 1-0


[Site "https://www.chess.com"]

[Event "Titled Tuesday Blitz July 11 Late 2023"]
[White "Mika, Tomasz"]
[Black "Schmakel, Sam"]
[WhiteFideId "1132970"]
[BlackFideId "2039311"]
[WhiteElo "2430"]
[BlackElo "2784"]
[Result "0-1"]
[Round "1"]
[TimeControl "180+2"]
[Date "2023.07.11"]
[WhiteClock "0:00:03"]
[BlackClock "0:00:18"]
[Board "65"]

1. d4 {[%clk 0:03:00]}  g6 {[%clk 0:02:56]} 2. Bf4 {[%clk 0:02:59]}  Bg7 {[%clk 0:02:56]} 3. Nc3 {[%clk 0:02:59]}  d6 {[%clk 0:02:56]} 4. e4 {[%clk 0:02:58]}  Nc6 {[%clk 0:02:43]} 5. Nf3 {[%clk 0:02:53]}  Bg4 {[%clk 0:02:42]} 6. d5 {[%clk 0:02:51]}  Nb8 {[%clk 0:02:39]} 7. Be2 {[%clk 0:02:45]}  Nf6 {[%clk 0:02:31]} 8. Qd2 {[%clk 0:02:44]}  c6 {[%clk 0:02:28]} 9. h3 {[%clk 0:02:35]}  Bxf3 {[%clk 0:02:24]} 10. Bxf3 {[%clk 0:02:36]}  cxd5 {[%clk 0:02:24]} 11. exd5 {[%clk 0:02:33]}  Nbd7 {[%clk 0:02:24]} 12. O-O {[%clk 0:02:31]}  O-O {[%clk 0:02:23]} 13. Rfe1 {[%clk 0:02:30]}  a6 {[%clk 0:02:23]} 14. Rac1 {[%clk 0:02:25]}  b5 {[%clk 0:02:22]} 15. Ne2 {[%clk 0:02:24]}  Nb6 {[%clk 0:02:14]} 16. c3 {[%clk 0:02:18]}  Rc8 {[%clk 0:02:06]} 17. b3 {[%clk 0:02:08]}  Qd7 {[%clk 0:01:54]} 18. Qd3 {[%clk 0:01:57]}  Rc7 {[%clk 0:01:44]} 19. Be3 {[%clk 0:01:56]}  Rb8 {[%clk 0:01:37]} 20. c4 {[%clk 0:01:41]}  bxc4 {[%clk 0:01:38]} 21. bxc4 {[%clk 0:01:41]}  Na4 {[%clk 0:01:38]} 22. Nd4 {[%clk 0:01:34]}  Nc5 {[%clk 0:01:38]} 23. Qe2 {[%clk 0:01:26]}  Na4 {[%clk 0:00:57]} 24. Nc6 {[%clk 0:01:21]}  Rb2 {[%clk 0:00:57]} 25. Rc2 {[%clk 0:01:19]}  Rcb7 {[%clk 0:00:57]} 26. Rec1 {[%clk 0:01:15]}  Ne8 {[%clk 0:00:47]} 27. Rxb2 {[%clk 0:00:57]}  Rxb2 {[%clk 0:00:47]} 28. Rc2 {[%clk 0:00:57]}  Rb1+ {[%clk 0:00:46]} 29. Kh2 {[%clk 0:00:57]}  e5 {[%clk 0:00:34]} 30. g4 {[%clk 0:00:25]}  f5 {[%clk 0:00:29]} 31. gxf5 {[%clk 0:00:24]}  gxf5 {[%clk 0:00:30]} 32. Bg5 {[%clk 0:00:19]}  e4 {[%clk 0:00:25]} 33. Bh5 {[%clk 0:00:18]}  Nf6 {[%clk 0:00:25]} 34. Bxf6 {[%clk 0:00:14]}  Bxf6 {[%clk 0:00:26]} 35. f3 {[%clk 0:00:13]}  Qg7 {[%clk 0:00:18]} 36. Qg2 {[%clk 0:00:08]}  Bg5 {[%clk 0:00:18]} 37. h4 {[%clk 0:00:06]}  Bf4+ {[%clk 0:00:18]} 38. Kh3 {[%clk 0:00:05]}  Rh1+ {[%clk 0:00:18]} 39. Qxh1 {[%clk 0:00:03]}  Qg3# {[%clk 0:00:18]} 0-1


[Site "https://www.chess.com"]

[Event "Titled Tuesday Blitz July 11 Late 2023"]
[White "Rios Escobar, Adan"]
[Black "Goltsev, Dmitry"]
[WhiteFideId "3403645"]
[BlackFideId "24176710"]
[WhiteElo "2425"]
[BlackElo "2777"]
[Result "1-0"]
[Round "1"]
[TimeControl "180+2"]
[Date "2023.07.11"]
[WhiteClock "0:00:01"]
[BlackClock "0:00:01"]
[Board "67"]

1. d4 {[%clk 0:03:00]}  Nf6 {[%clk 0:03:00]} 2. g3 {[%clk 0:03:00]}  e6 {[%clk 0:02:59]} 3. c4 {[%clk 0:02:56]}  b6 {[%clk 0:02:56]} 4. Bg2 {[%clk 0:02:55]}  d5 {[%clk 0:02:56]} 5. cxd5 {[%clk 0:02:55]}  exd5 {[%clk 0:02:55]} 6. Nc3 {[%clk 0:02:54]}  c6 {[%clk 0:02:53]} 7. Nf3 {[%clk 0:02:54]}  Bd6 {[%clk 0:02:52]} 8. O-O {[%clk 0:02:54]}  O-O {[%clk 0:02:51]} 9. Bf4 {[%clk 0:02:31]}  a5 {[%clk 0:02:49]} 10. Rc1 {[%clk 0:02:27]}  Ba6 {[%clk 0:02:47]} 11. Re1 {[%clk 0:02:26]}  Bxf4 {[%clk 0:02:44]} 12. gxf4 {[%clk 0:02:26]}  Nbd7 {[%clk 0:02:45]} 13. h3 {[%clk 0:02:05]}  Re8 {[%clk 0:02:40]} 14. e3 {[%clk 0:02:05]}  Rc8 {[%clk 0:02:38]} 15. Ne5 {[%clk 0:02:02]}  Nxe5 {[%clk 0:02:38]} 16. fxe5 {[%clk 0:02:00]}  Nd7 {[%clk 0:02:36]} 17. Qg4 {[%clk 0:01:55]}  Nf8 {[%clk 0:02:35]} 18. Kh2 {[%clk 0:01:43]}  Rc7 {[%clk 0:02:26]} 19. Rg1 {[%clk 0:01:39]}  g6 {[%clk 0:02:20]} 20. f4 {[%clk 0:01:36]}  Bd3 {[%clk 0:02:16]} 21. Bf3 {[%clk 0:01:27]}  Kh8 {[%clk 0:02:05]} 22. Rg2 {[%clk 0:01:20]}  Bf5 {[%clk 0:02:00]} 23. Qg3 {[%clk 0:01:19]}  Ne6 {[%clk 0:01:59]} 24. Rcg1 {[%clk 0:01:16]}  Ng7 {[%clk 0:01:55]} 25. a4 {[%clk 0:00:56]}  Be6 {[%clk 0:01:51]} 26. Bg4 {[%clk 0:00:54]}  Qd7 {[%clk 0:01:49]} 27. Qh4 {[%clk 0:00:45]}  Qe7 {[%clk 0:01:46]} 28. Qh6 {[%clk 0:00:39]}  Rd8 {[%clk 0:01:40]} 29. h4 {[%clk 0:00:31]}  Bxg4 {[%clk 0:01:38]} 30. Rxg4 {[%clk 0:00:28]}  Nf5 {[%clk 0:01:39]} 31. Qg5 {[%clk 0:00:26]}  Qxg5 {[%clk 0:01:39]} 32. hxg5 {[%clk 0:00:23]}  Nxe3 {[%clk 0:01:38]} 33. Rh4 {[%clk 0:00:20]}  Nf5 {[%clk 0:01:37]} 34. Rh3 {[%clk 0:00:21]}  Nxd4 {[%clk 0:01:37]} 35. Kg2 {[%clk 0:00:20]}  Ne6 {[%clk 0:01:37]} 36. Kg3 {[%clk 0:00:18]}  Kg7 {[%clk 0:01:35]} 37. Rgh1 {[%clk 0:00:18]}  Rh8 {[%clk 0:01:33]} 38. Kg4 {[%clk 0:00:18]}  Nd4 {[%clk 0:01:25]} 39. Rc1 {[%clk 0:00:16]}  h5+ {[%clk 0:01:20]} 40. gxh6+ {[%clk 0:00:15]}  Rxh6 {[%clk 0:01:20]} 41. Rxh6 {[%clk 0:00:15]}  Kxh6 {[%clk 0:01:21]} 42. Nxd5 {[%clk 0:00:16]}  Rb7 {[%clk 0:01:20]} 43. Nf6 {[%clk 0:00:15]}  b5 {[%clk 0:00:08]} 44. Rh1+ {[%clk 0:00:14]}  Kg7 {[%clk 0:00:09]} 45. Rh7+ {[%clk 0:00:14]}  Kf8 {[%clk 0:00:09]} 46. Rh8+ {[%clk 0:00:15]}  Kg7 {[%clk 0:00:09]} 47. Rg8+ {[%clk 0:00:14]}  Kh6 {[%clk 0:00:09]} 48. Kh3 {[%clk 0:00:04]}  bxa4 {[%clk 0:00:04]} 49. Ng4+ {[%clk 0:00:04]}  Kh7 {[%clk 0:00:03]} 50. Nf6+ {[%clk 0:00:04]}  Kh6 {[%clk 0:00:04]} 51. Rh8+ {[%clk 0:00:04]}  Kg7 {[%clk 0:00:04]} 52. Ra8 {[%clk 0:00:03]}  g5 {[%clk 0:00:03]} 53. fxg5 {[%clk 0:00:01]}  Kg6 {[%clk 0:00:03]} 54. Kg4 {[%clk 0:00:01]}  Kg7 {[%clk 0:00:01]} 55. Rg8# {[%clk 0:00:01]} 1-0


[Site "https://www.chess.com"]